[Event "Early-Titled-Tuesday-Blitz-April-02-2024"]
[Site "Chess.com"]
[Date "2024.04.02"]
[Round "11"]
[White "MasterKroket"]
[Black "blitzking1729"]
[Result "0-1"]
[WhiteElo "2583"]
[BlackElo "2768"]
[TimeControl "180+1"]
[EndTime "10:07:39 PDT"]
[Termination "blitzking1729 won by resignation"]

1. e4 {[%clk 0:03:00.9]} 1... e5 {[%clk 0:02:58.3]} 2. Nf3 {[%clk 0:03:00.6]}
2... Nc6 {[%clk 0:02:56.7]} 3. Bb5 {[%clk 0:03:00.8]} 3... a6 {[%clk 0:02:56.2]}
4. Ba4 {[%clk 0:03:01.1]} 4... Nf6 {[%clk 0:02:55.4]} 5. O-O {[%clk 0:03:01.3]}
5... d6 {[%clk 0:02:55.7]} 6. c3 {[%clk 0:02:57.4]} 6... Bd7 {[%clk 0:02:54.1]}
7. Re1 {[%clk 0:02:56.2]} 7... g6 {[%clk 0:02:52.8]} 8. d4 {[%clk 0:02:54.4]}
8... Bg7 {[%clk 0:02:52.1]} 9. Nbd2 {[%clk 0:02:48.5]} 9... O-O {[%clk
0:02:51.1]} 10. Nf1 {[%clk 0:02:48.5]} 10... exd4 {[%clk 0:02:45.4]} 11. cxd4
{[%clk 0:02:48.3]} 11... b5 {[%clk 0:02:45.8]} 12. Bc2 {[%clk 0:02:44.7]} 12...
Bg4 {[%clk 0:02:40.8]} 13. Be3 {[%clk 0:02:43.9]} 13... Nh5 {[%clk 0:02:36.9]}
14. d5 {[%clk 0:02:19.2]} 14... Ne5 {[%clk 0:02:26.4]} 15. Kh1 {[%clk
0:01:57.3]} 15... f5 {[%clk 0:01:39.8]} 16. exf5 {[%clk 0:01:54.2]} 16... gxf5
{[%clk 0:01:35.7]} 17. N1d2 {[%clk 0:01:41.6]} 17... f4 {[%clk 0:01:04.3]} 18.
Bd4 {[%clk 0:01:41.5]} 18... Nxf3 {[%clk 0:00:56.2]} 19. Nxf3 {[%clk 0:01:41.6]}
19... Bxd4 {[%clk 0:00:53.3]} 20. Qxd4 {[%clk 0:01:41.6]} 20... Qf6 {[%clk
0:00:43.6]} 21. Qxf6 {[%clk 0:01:37]} 21... Nxf6 {[%clk 0:00:43]} 22. Nd4 {[%clk
0:01:34]} 22... Rfe8 {[%clk 0:00:39.9]} 23. Bb3 {[%clk 0:01:20.9]} 23... Kg7
{[%clk 0:00:23.2]} 24. Rac1 {[%clk 0:01:19.1]} 24... Rxe1+ {[%clk 0:00:22.6]}
25. Rxe1 {[%clk 0:01:18.7]} 25... Re8 {[%clk 0:00:22.1]} 26. Rc1 {[%clk
0:01:18.7]} 26... Re7 {[%clk 0:00:20.7]} 27. h3 {[%clk 0:01:13.1]} 27... Bc8
{[%clk 0:00:18.2]} 28. Kh2 {[%clk 0:00:57.2]} 28... Kf8 {[%clk 0:00:17.9]} 29.
Rc3 {[%clk 0:00:50.3]} 29... Bb7 {[%clk 0:00:12.3]} 30. Rf3 {[%clk 0:00:49.3]}
30... Nxd5 {[%clk 0:00:11.2]} 31. Bxd5 {[%clk 0:00:47.8]} 31... Bxd5 {[%clk
0:00:12.1]} 32. Rxf4+ {[%clk 0:00:48.6]} 32... Rf7 {[%clk 0:00:12.4]} 33. Rxf7+
{[%clk 0:00:45.2]} 33... Kxf7 {[%clk 0:00:13.3]} 34. a3 {[%clk 0:00:45.8]} 34...
c5 {[%clk 0:00:14]} 35. Nf5 {[%clk 0:00:44.6]} 35... Ke6 {[%clk 0:00:14.2]} 36.
Ne3 {[%clk 0:00:44.9]} 36... Be4 {[%clk 0:00:14.3]} 37. g4 {[%clk 0:00:42.2]}
37... d5 {[%clk 0:00:14.4]} 38. f4 {[%clk 0:00:42.5]} 38... d4 {[%clk
0:00:14.8]} 39. f5+ {[%clk 0:00:42.9]} 39... Ke5 {[%clk 0:00:15.1]} 40. Nf1
{[%clk 0:00:38.5]} 40... c4 {[%clk 0:00:14.8]} 41. Nd2 {[%clk 0:00:29.5]} 41...
Bd5 {[%clk 0:00:09.8]} 42. Kg3 {[%clk 0:00:28.6]} 42... c3 {[%clk 0:00:09.8]}
43. bxc3 {[%clk 0:00:27.3]} 43... dxc3 {[%clk 0:00:10.7]} 0-1

[Event "Early-Titled-Tuesday-Blitz-April-02-2024"]
[Site "Chess.com"]
[Date "2024.04.02"]
[Round "11"]
[White "PolandHussars"]
[Black "KarolKacprzak"]
[Result "1-0"]
[WhiteElo "2596"]
[BlackElo "2726"]
[TimeControl "180+1"]
[EndTime "10:07:44 PDT"]
[Termination "PolandHussars won on time"]

1. e4 {[%clk 0:03:00.9]} 1... c5 {[%clk 0:02:57.5]} 2. Ne2 {[%clk 0:03:00.4]}
2... Nf6 {[%clk 0:02:54.1]} 3. Nbc3 {[%clk 0:02:59.6]} 3... d6 {[%clk
0:02:51.8]} 4. g3 {[%clk 0:02:59]} 4... g6 {[%clk 0:02:51.8]} 5. Bg2 {[%clk
0:02:59.6]} 5... Bg7 {[%clk 0:02:52.6]} 6. O-O {[%clk 0:03:00.2]} 6... O-O
{[%clk 0:02:53.3]} 7. d3 {[%clk 0:03:00.3]} 7... Nc6 {[%clk 0:02:53.8]} 8. h3
{[%clk 0:03:00.9]} 8... Rb8 {[%clk 0:02:48.7]} 9. a4 {[%clk 0:02:58.6]} 9... a6
{[%clk 0:02:47.3]} 10. f4 {[%clk 0:02:58.3]} 10... Bd7 {[%clk 0:02:42.6]} 11. g4
{[%clk 0:02:57.8]} 11... b5 {[%clk 0:02:37.3]} 12. axb5 {[%clk 0:02:58.7]} 12...
axb5 {[%clk 0:02:38.2]} 13. Ng3 {[%clk 0:02:58.8]} 13... Nd4 {[%clk 0:02:35.5]}
14. g5 {[%clk 0:02:46.2]} 14... Ne8 {[%clk 0:02:34]} 15. f5 {[%clk 0:02:46.6]}
15... b4 {[%clk 0:02:26.2]} 16. Nd5 {[%clk 0:02:44.6]} 16... e6 {[%clk
0:02:10.6]} 17. f6 {[%clk 0:02:25.6]} 17... exd5 {[%clk 0:02:10.6]} 18. fxg7
{[%clk 0:02:26.1]} 18... Nxg7 {[%clk 0:02:11.5]} 19. exd5 {[%clk 0:02:25.9]}
19... Ngf5 {[%clk 0:01:09.5]} 20. Ne4 {[%clk 0:02:24.4]} 20... Nh4 {[%clk
0:01:04.3]} 21. Bf4 {[%clk 0:02:15.3]} 21... Nxg2 {[%clk 0:00:55.7]} 22. Kxg2
{[%clk 0:02:16.2]} 22... Bf5 {[%clk 0:00:56.2]} 23. Nxd6 {[%clk 0:02:03]} 23...
Rb6 {[%clk 0:00:53.5]} 24. c3 {[%clk 0:01:58.1]} 24... bxc3 {[%clk 0:00:42]} 25.
bxc3 {[%clk 0:01:59]} 25... Nb5 {[%clk 0:00:29.3]} 26. Nxf5 {[%clk 0:01:54.1]}
26... Qxd5+ {[%clk 0:00:29.6]} 27. Qf3 {[%clk 0:01:54.7]} 27... Qxf5 {[%clk
0:00:28.7]} 28. Rab1 {[%clk 0:01:43.8]} 28... Qe6 {[%clk 0:00:22.2]} 29. Rfe1
{[%clk 0:01:17.8]} 29... Qd7 {[%clk 0:00:20.3]} 30. Kh2 {[%clk 0:01:12.6]} 30...
Re6 {[%clk 0:00:19.6]} 31. Be5 {[%clk 0:01:04]} 31... Rfe8 {[%clk 0:00:19.4]}
32. Bg3 {[%clk 0:00:52.6]} 32... Nxc3 {[%clk 0:00:17.8]} 33. Rxe6 {[%clk
0:00:49.4]} 33... Qxe6 {[%clk 0:00:18.7]} 34. Rb2 {[%clk 0:00:47.9]} 34... Nd5
{[%clk 0:00:17.9]} 35. Rf2 {[%clk 0:00:47.2]} 35... Ne3 {[%clk 0:00:16.8]} 36.
Qf6 {[%clk 0:00:36.2]} 36... Nf5 {[%clk 0:00:16]} 37. Bf4 {[%clk 0:00:33.2]}
37... h6 {[%clk 0:00:14.2]} 38. Qxe6 {[%clk 0:00:32.8]} 38... Rxe6 {[%clk
0:00:15.1]} 39. gxh6 {[%clk 0:00:33.3]} 39... Kh7 {[%clk 0:00:14.7]} 40. Rc2
{[%clk 0:00:32.9]} 40... Rc6 {[%clk 0:00:10.5]} 41. Rc1 {[%clk 0:00:27.5]} 41...
f6 {[%clk 0:00:10.3]} 42. Bd2 {[%clk 0:00:20.2]} 1-0

[Event "Early-Titled-Tuesday-Blitz-April-02-2024"]
[Site "Chess.com"]
[Date "2024.04.02"]
[Round "11"]
[White "Massakru"]
[Black "chess_sharparchitect"]
[Result "1-0"]
[WhiteElo "2388"]
[BlackElo "2276"]
[TimeControl "180+1"]
[EndTime "10:07:44 PDT"]
[Termination "Massakru won by checkmate"]

1. e4 {[%clk 0:03:00.9]} 1... c5 {[%clk 0:02:57]} 2. Nf3 {[%clk 0:03:00.7]} 2...
d6 {[%clk 0:02:57.3]} 3. c3 {[%clk 0:03:01.3]} 3... Nf6 {[%clk 0:02:56.1]} 4. h3
{[%clk 0:03:01.9]} 4... e6 {[%clk 0:02:52.4]} 5. Bd3 {[%clk 0:03:01.9]} 5...
Nbd7 {[%clk 0:02:49]} 6. Bc2 {[%clk 0:03:02]} 6... Be7 {[%clk 0:02:47.6]} 7. d4
{[%clk 0:03:02]} 7... cxd4 {[%clk 0:02:46.8]} 8. cxd4 {[%clk 0:03:02.9]} 8... b6
{[%clk 0:02:45.9]} 9. Nc3 {[%clk 0:02:55.8]} 9... Bb7 {[%clk 0:02:45.3]} 10. O-O
{[%clk 0:02:53.1]} 10... e5 {[%clk 0:02:41]} 11. d5 {[%clk 0:02:46.7]} 11... a5
{[%clk 0:02:34.1]} 12. Re1 {[%clk 0:02:40.1]} 12... O-O {[%clk 0:02:29.8]} 13.
Bg5 {[%clk 0:02:38.6]} 13... h6 {[%clk 0:02:29.3]} 14. Bh4 {[%clk 0:02:38.4]}
14... Nc5 {[%clk 0:02:22.4]} 15. Nb5 {[%clk 0:02:30.4]} 15... Ba6 {[%clk
0:02:13.2]} 16. a4 {[%clk 0:02:28.8]} 16... Bxb5 {[%clk 0:02:09.8]} 17. axb5
{[%clk 0:02:28.4]} 17... Nxd5 {[%clk 0:02:07.2]} 18. Qxd5 {[%clk 0:02:15.6]}
18... Bxh4 {[%clk 0:02:05.9]} 19. b4 {[%clk 0:02:10.2]} 19... Ne6 {[%clk
0:01:47.5]} 20. bxa5 {[%clk 0:02:01.9]} 20... Rxa5 {[%clk 0:01:36.6]} 21. Rxa5
{[%clk 0:02:01.1]} 21... bxa5 {[%clk 0:01:37.2]} 22. Nxh4 {[%clk 0:02:01.1]}
22... Nf4 {[%clk 0:01:23.4]} 23. Qd2 {[%clk 0:01:55.4]} 23... Qxh4 {[%clk
0:01:22.9]} 24. Qxd6 {[%clk 0:01:44.2]} 24... Qg5 {[%clk 0:01:16.6]} 25. g3
{[%clk 0:01:42.4]} 25... Nxh3+ {[%clk 0:01:15.5]} 26. Kg2 {[%clk 0:01:41.5]}
26... Nf4+ {[%clk 0:01:11.5]} 27. Kf1 {[%clk 0:01:41.1]} 27... Ne6 {[%clk
0:01:04.6]} 28. b6 {[%clk 0:01:36.1]} 28... Rd8 {[%clk 0:00:57.7]} 29. Qc6
{[%clk 0:01:21.2]} 29... Nd4 {[%clk 0:00:57.5]} 30. Qc7 {[%clk 0:01:15.7]} 30...
Nxc2 {[%clk 0:00:56.2]} 31. Qxc2 {[%clk 0:01:15.3]} 31... Qe7 {[%clk 0:00:51.8]}
32. Rd1 {[%clk 0:00:53]} 32... Rb8 {[%clk 0:00:49.5]} 33. Qc7 {[%clk 0:00:50.7]}
33... Qe8 {[%clk 0:00:39.8]} 34. Rd7 {[%clk 0:00:45]} 34... a4 {[%clk
0:00:35.9]} 35. b7 {[%clk 0:00:33.2]} 35... a3 {[%clk 0:00:34]} 36. Rxf7 {[%clk
0:00:18]} 36... Qxf7 {[%clk 0:00:31.3]} 37. Qxb8+ {[%clk 0:00:18]} 37... Kh7
{[%clk 0:00:31]} 38. Qa8 {[%clk 0:00:17.4]} 38... Qc4+ {[%clk 0:00:28.7]} 39.
Kg1 {[%clk 0:00:17.5]} 39... a2 {[%clk 0:00:17.6]} 40. b8=Q {[%clk 0:00:17.6]}
40... Qc1+ {[%clk 0:00:14.5]} 41. Kg2 {[%clk 0:00:17.2]} 41... a1=Q {[%clk
0:00:14.7]} 42. Qg8+ {[%clk 0:00:14.8]} 42... Kg6 {[%clk 0:00:14.7]} 43. Qe6+
{[%clk 0:00:13]} 43... Kg5 {[%clk 0:00:13.9]} 44. Qf5# {[%clk 0:00:10.2]} 1-0

[Event "Early-Titled-Tuesday-Blitz-April-02-2024"]
[Site "Chess.com"]
[Date "2024.04.02"]
[Round "11"]
[White "carloseduar100"]
[Black "Mariia89"]
[Result "0-1"]
[WhiteElo "2190"]
[BlackElo "2285"]
[TimeControl "180+1"]
[EndTime "10:07:44 PDT"]
[Termination "Mariia89 won by checkmate"]

1. g3 {[%clk 0:03:00.6]} 1... c5 {[%clk 0:02:59.7]} 2. Bg2 {[%clk 0:03:01.5]}
2... Nc6 {[%clk 0:03:00.3]} 3. Nf3 {[%clk 0:02:59.9]} 3... g6 {[%clk 0:03:00.5]}
4. O-O {[%clk 0:02:58.9]} 4... Bg7 {[%clk 0:03:01.2]} 5. d3 {[%clk 0:02:58.3]}
5... Nf6 {[%clk 0:03:01.7]} 6. Nbd2 {[%clk 0:02:58.3]} 6... d5 {[%clk
0:03:01.2]} 7. c3 {[%clk 0:02:59.2]} 7... O-O {[%clk 0:03:01.3]} 8. a3 {[%clk
0:02:29.6]} 8... e5 {[%clk 0:03:01.2]} 9. Re1 {[%clk 0:02:29.9]} 9... Re8 {[%clk
0:03:01.1]} 10. e4 {[%clk 0:02:30.1]} 10... Rb8 {[%clk 0:02:58.7]} 11. h4 {[%clk
0:02:27]} 11... Bg4 {[%clk 0:02:56.2]} 12. Qe2 {[%clk 0:02:27.4]} 12... Qd7
{[%clk 0:02:51.3]} 13. Nf1 {[%clk 0:02:27.8]} 13... h6 {[%clk 0:02:38.7]} 14.
N1h2 {[%clk 0:02:25.1]} 14... Bh3 {[%clk 0:02:38.2]} 15. Bh1 {[%clk 0:02:24.8]}
15... b5 {[%clk 0:02:34.1]} 16. Bd2 {[%clk 0:02:00.9]} 16... d4 {[%clk
0:02:10.4]} 17. Rad1 {[%clk 0:01:53.5]} 17... Be6 {[%clk 0:01:54.2]} 18. Bc1
{[%clk 0:01:52.9]} 18... Na5 {[%clk 0:01:50.4]} 19. h5 {[%clk 0:01:52.6]} 19...
Bh3 {[%clk 0:01:42.9]} 20. hxg6 {[%clk 0:01:51.7]} 20... fxg6 {[%clk 0:01:42.9]}
21. Nh4 {[%clk 0:01:51.4]} 21... Kh7 {[%clk 0:01:40.9]} 22. f4 {[%clk
0:01:41.5]} 22... Nb3 {[%clk 0:01:33.4]} 23. f5 {[%clk 0:01:40.7]} 23... gxf5
{[%clk 0:01:29.8]} 24. exf5 {[%clk 0:01:40.8]} 24... Nxc1 {[%clk 0:01:28.1]} 25.
Rxc1 {[%clk 0:01:37.1]} 25... Bxf5 {[%clk 0:01:15.6]} 26. Nxf5 {[%clk
0:01:34.3]} 26... Qxf5 {[%clk 0:01:16.5]} 27. Rf1 {[%clk 0:01:35]} 27... Qg5
{[%clk 0:01:09]} 28. Be4+ {[%clk 0:01:15.6]} 28... Nxe4 {[%clk 0:01:08.7]} 29.
Qxe4+ {[%clk 0:01:16.5]} 29... Kh8 {[%clk 0:01:08.6]} 30. Kg2 {[%clk 0:01:15.2]}
30... Rg8 {[%clk 0:01:01.1]} 31. Rce1 {[%clk 0:01:12.2]} 31... Rbf8 {[%clk
0:00:59.9]} 32. Nf3 {[%clk 0:01:09]} 32... Qh5 {[%clk 0:00:51.6]} 33. Nh4 {[%clk
0:01:00.5]} 33... Bf6 {[%clk 0:00:45.9]} 34. Rh1 {[%clk 0:00:41.7]} 34... Rg4
{[%clk 0:00:45.3]} 35. Qd5 {[%clk 0:00:16.1]} 35... Qg5 {[%clk 0:00:36.2]} 36.
Nf3 {[%clk 0:00:13.9]} 36... Rxg3+ {[%clk 0:00:35.8]} 37. Kf1 {[%clk 0:00:14]}
37... Qf4 {[%clk 0:00:32.9]} 38. Ke2 {[%clk 0:00:11.4]} 38... Rg2+ {[%clk
0:00:21.3]} 39. Kd1 {[%clk 0:00:11.6]} 39... Bg5 {[%clk 0:00:20]} 40. Qe4 {[%clk
0:00:09.3]} 40... Qc1# {[%clk 0:00:17.2]} 0-1

[Event "Early-Titled-Tuesday-Blitz-April-02-2024"]
[Site "Chess.com"]
[Date "2024.04.02"]
[Round "11"]
[White "Manukyan_Artak"]
[Black "LeninGuerra"]
[Result "0-1"]
[WhiteElo "2569"]
[BlackElo "2729"]
[TimeControl "180+1"]
[EndTime "10:07:50 PDT"]
[Termination "LeninGuerra won by checkmate"]

1. e4 {[%clk 0:02:51.5]} 1... c5 {[%clk 0:02:59.5]} 2. Nf3 {[%clk 0:02:51.4]}
2... e6 {[%clk 0:02:59.7]} 3. c3 {[%clk 0:02:51.7]} 3... d5 {[%clk 0:02:56.7]}
4. e5 {[%clk 0:02:51.6]} 4... Nc6 {[%clk 0:02:55.7]} 5. d4 {[%clk 0:02:51.6]}
5... cxd4 {[%clk 0:02:56.6]} 6. cxd4 {[%clk 0:02:52.2]} 6... Nge7 {[%clk
0:02:57.4]} 7. Nc3 {[%clk 0:02:50.4]} 7... Nf5 {[%clk 0:02:57.5]} 8. Be3 {[%clk
0:02:49.9]} 8... Be7 {[%clk 0:02:56.1]} 9. Bd3 {[%clk 0:02:49.4]} 9... O-O
{[%clk 0:02:55.5]} 10. O-O {[%clk 0:02:47.1]} 10... a6 {[%clk 0:02:55]} 11. Rc1
{[%clk 0:02:46.7]} 11... Kh8 {[%clk 0:02:50.2]} 12. a3 {[%clk 0:02:32]} 12... g5
{[%clk 0:02:49.7]} 13. Kh1 {[%clk 0:02:18.6]} 13... Rg8 {[%clk 0:02:41.5]} 14.
b4 {[%clk 0:02:03]} 14... g4 {[%clk 0:02:40.9]} 15. Ng1 {[%clk 0:02:00]} 15...
h5 {[%clk 0:02:40.7]} 16. Bxf5 {[%clk 0:01:56.3]} 16... exf5 {[%clk 0:02:40.5]}
17. g3 {[%clk 0:01:53.3]} 17... Be6 {[%clk 0:02:36.1]} 18. Nge2 {[%clk
0:01:51.4]} 18... h4 {[%clk 0:02:17.9]} 19. Nf4 {[%clk 0:01:49.3]} 19... Kg7
{[%clk 0:02:11.8]} 20. Kg2 {[%clk 0:01:39.3]} 20... Rh8 {[%clk 0:02:10.5]} 21.
Rh1 {[%clk 0:01:39.2]} 21... Qd7 {[%clk 0:01:47.4]} 22. Qd2 {[%clk 0:01:37.4]}
22... Rh7 {[%clk 0:01:43.4]} 23. Na4 {[%clk 0:01:32.1]} 23... Rah8 {[%clk
0:01:23.4]} 24. Nc5 {[%clk 0:01:28.1]} 24... Qc8 {[%clk 0:01:18.8]} 25. Nfxe6+
{[%clk 0:01:09.7]} 25... fxe6 {[%clk 0:01:18.3]} 26. Bg5 {[%clk 0:01:09.6]}
26... h3+ {[%clk 0:01:01.9]} 27. Kf1 {[%clk 0:01:03.6]} 27... Kf7 {[%clk
0:00:59.2]} 28. Bxe7 {[%clk 0:01:02]} 28... Nxe7 {[%clk 0:00:59.2]} 29. Nd3
{[%clk 0:00:59.1]} 29... Qd7 {[%clk 0:00:58]} 30. Ke2 {[%clk 0:00:59.2]} 30...
Qb5 {[%clk 0:00:55.2]} 31. Rc5 {[%clk 0:00:57.1]} 31... Qa4 {[%clk 0:00:53.9]}
32. Rhc1 {[%clk 0:00:47.6]} 32... Nc6 {[%clk 0:00:53.6]} 33. Qc3 {[%clk
0:00:28.6]} 33... Rc8 {[%clk 0:00:48.2]} 34. Ke3 {[%clk 0:00:26.7]} 34... Ke8
{[%clk 0:00:42.5]} 35. Nb2 {[%clk 0:00:25.4]} 35... Qb5 {[%clk 0:00:34.2]} 36.
Rxb5 {[%clk 0:00:25.1]} 36... axb5 {[%clk 0:00:35.1]} 37. Qc5 {[%clk 0:00:24.4]}
37... Rd7 {[%clk 0:00:35.6]} 38. Qxb5 {[%clk 0:00:24.3]} 38... Rdc7 {[%clk
0:00:35.9]} 39. Nd3 {[%clk 0:00:22.9]} 39... Kf7 {[%clk 0:00:28.3]} 40. Qb6
{[%clk 0:00:20.4]} 40... Re7 {[%clk 0:00:23.1]} 41. Nf4 {[%clk 0:00:18.3]} 41...
Ra8 {[%clk 0:00:23.1]} 42. Rc3 {[%clk 0:00:16.6]} 42... Ra6 {[%clk 0:00:22.6]}
43. Qc5 {[%clk 0:00:17]} 43... Na7 {[%clk 0:00:21]} 44. Nxd5 {[%clk 0:00:16.2]}
44... exd5 {[%clk 0:00:20.4]} 45. Qxd5+ {[%clk 0:00:16.5]} 45... Rae6 {[%clk
0:00:21]} 46. Qc4 {[%clk 0:00:15.3]} 46... Nc6 {[%clk 0:00:20.8]} 47. Rd3 {[%clk
0:00:15.4]} 47... Kg6 {[%clk 0:00:20.2]} 48. Kf4 {[%clk 0:00:15.3]} 48... Nd8
{[%clk 0:00:18.1]} 49. Re3 {[%clk 0:00:14.7]} 49... Rc6 {[%clk 0:00:18.2]} 50.
Qd3 {[%clk 0:00:14.6]} 50... Ne6# {[%clk 0:00:18.5]} 0-1

[Event "Early-Titled-Tuesday-Blitz-April-02-2024"]
[Site "Chess.com"]
[Date "2024.04.02"]
[Round "11"]
[White "Durarbayli"]
[Black "KacperKacprzak"]
[Result "1-0"]
[WhiteElo "2919"]
[BlackElo "2717"]
[TimeControl "180+1"]
[EndTime "10:07:51 PDT"]
[Termination "Durarbayli won on time"]

1. d4 {[%clk 0:03:00.9]} 1... d5 {[%clk 0:02:56.9]} 2. c4 {[%clk 0:03:00.2]}
2... e6 {[%clk 0:02:57.3]} 3. Nc3 {[%clk 0:02:59.4]} 3... Nf6 {[%clk 0:02:54.8]}
4. cxd5 {[%clk 0:02:58.7]} 4... exd5 {[%clk 0:02:55.7]} 5. Bg5 {[%clk
0:02:57.5]} 5... c6 {[%clk 0:02:56.3]} 6. e3 {[%clk 0:02:57.5]} 6... Bd6 {[%clk
0:02:56.3]} 7. Bd3 {[%clk 0:02:56.8]} 7... O-O {[%clk 0:02:56.9]} 8. Nge2 {[%clk
0:02:56.6]} 8... Re8 {[%clk 0:02:56.8]} 9. Qc2 {[%clk 0:02:55.7]} 9... h6 {[%clk
0:02:56]} 10. Bh4 {[%clk 0:02:55.9]} 10... a5 {[%clk 0:02:56.3]} 11. h3 {[%clk
0:02:53.7]} 11... Na6 {[%clk 0:02:55.9]} 12. a3 {[%clk 0:02:53.3]} 12... Nc7
{[%clk 0:02:56]} 13. g4 {[%clk 0:02:53.3]} 13... Ne6 {[%clk 0:02:48.5]} 14. f4
{[%clk 0:02:46.3]} 14... g5 {[%clk 0:02:31.1]} 15. Bf2 {[%clk 0:02:31.1]} 15...
gxf4 {[%clk 0:02:27.7]} 16. O-O-O {[%clk 0:02:31.2]} 16... f3 {[%clk 0:02:23.1]}
17. Ng1 {[%clk 0:02:23.9]} 17... Ng5 {[%clk 0:02:23.4]} 18. h4 {[%clk
0:02:08.2]} 18... Nge4 {[%clk 0:02:22.9]} 19. g5 {[%clk 0:01:46.9]} 19... Ng4
{[%clk 0:01:28.8]} 20. Bxe4 {[%clk 0:01:33.5]} 20... Nxf2 {[%clk 0:01:16.5]} 21.
Bh7+ {[%clk 0:01:30]} 21... Kh8 {[%clk 0:01:16.2]} 22. Qxf2 {[%clk 0:01:30.8]}
22... Kxh7 {[%clk 0:01:15.9]} 23. Nxf3 {[%clk 0:01:30.8]} 23... h5 {[%clk
0:01:08.2]} 24. g6+ {[%clk 0:01:24.2]} 24... Kg7 {[%clk 0:01:01.3]} 25. gxf7
{[%clk 0:01:23]} 25... Rf8 {[%clk 0:01:01.4]} 26. Ng5 {[%clk 0:01:10.9]} 26...
Qe7 {[%clk 0:00:53.5]} 27. Rhg1 {[%clk 0:01:10.1]} 27... Bg4 {[%clk 0:00:53.2]}
28. e4 {[%clk 0:01:03.1]} 28... Rxf7 {[%clk 0:00:50.5]} 29. Nxf7 {[%clk
0:01:00.1]} 29... Qxf7 {[%clk 0:00:51.4]} 30. Qc2 {[%clk 0:00:46.3]} 30... dxe4
{[%clk 0:00:47.2]} 31. Nxe4 {[%clk 0:00:39.5]} 31... Bf4+ {[%clk 0:00:47.6]} 32.
Kb1 {[%clk 0:00:39.9]} 32... Re8 {[%clk 0:00:48.2]} 33. Rdf1 {[%clk 0:00:38.3]}
33... Qf5 {[%clk 0:00:44.9]} 34. Nf2 {[%clk 0:00:31.3]} 34... Qxc2+ {[%clk
0:00:38.8]} 35. Kxc2 {[%clk 0:00:32.2]} 35... Be3 {[%clk 0:00:37.8]} 36. Kd3
{[%clk 0:00:10.5]} 36... Bxf2 {[%clk 0:00:31.6]} 37. Rxf2 {[%clk 0:00:11.4]}
37... Re7 {[%clk 0:00:28.3]} 38. Rg3 {[%clk 0:00:11]} 38... Rd7 {[%clk
0:00:25.1]} 39. Kc3 {[%clk 0:00:10.5]} 39... Kg6 {[%clk 0:00:24.7]} 40. Re3
{[%clk 0:00:10.1]} 40... b6 {[%clk 0:00:21.8]} 41. Re5 {[%clk 0:00:10]} 1-0

[Event "Early-Titled-Tuesday-Blitz-April-02-2024"]
[Site "Chess.com"]
[Date "2024.04.02"]
[Round "11"]
[White "DefenceWinsChampionships"]
[Black "ljuks68"]
[Result "1-0"]
[WhiteElo "2311"]
[BlackElo "2389"]
[TimeControl "180+1"]
[EndTime "10:07:51 PDT"]
[Termination "DefenceWinsChampionships won by resignation"]

1. e4 {[%clk 0:03:00.9]} 1... e6 {[%clk 0:02:45.9]} 2. d4 {[%clk 0:03:00.1]}
2... d5 {[%clk 0:02:45.7]} 3. e5 {[%clk 0:03:00.7]} 3... c5 {[%clk 0:02:43.2]}
4. c3 {[%clk 0:03:01.3]} 4... Nc6 {[%clk 0:02:42.3]} 5. Nf3 {[%clk 0:03:01.9]}
5... Qb6 {[%clk 0:02:40.2]} 6. a3 {[%clk 0:03:02.5]} 6... c4 {[%clk 0:02:39.9]}
7. Nbd2 {[%clk 0:02:59.4]} 7... Na5 {[%clk 0:02:40]} 8. Be2 {[%clk 0:02:59.3]}
8... Bd7 {[%clk 0:02:40]} 9. O-O {[%clk 0:02:59.2]} 9... Be7 {[%clk 0:02:28.7]}
10. h4 {[%clk 0:02:57.5]} 10... h6 {[%clk 0:02:28]} 11. Re1 {[%clk 0:02:46.3]}
11... g5 {[%clk 0:02:25.2]} 12. h5 {[%clk 0:02:26.8]} 12... O-O-O {[%clk
0:02:12.7]} 13. Nh2 {[%clk 0:02:26.8]} 13... f5 {[%clk 0:02:10.5]} 14. exf6
{[%clk 0:02:19.1]} 14... Nxf6 {[%clk 0:02:09.7]} 15. Ng4 {[%clk 0:01:08]} 15...
Nxh5 {[%clk 0:01:48.4]} 16. Ne5 {[%clk 0:01:07.4]} 16... Nf4 {[%clk 0:01:45.5]}
17. Nf7 {[%clk 0:01:05.1]} 17... Rdf8 {[%clk 0:01:41.1]} 18. Nxh8 {[%clk
0:01:04.8]} 18... Rxh8 {[%clk 0:01:41.7]} 19. Nf3 {[%clk 0:00:50.5]} 19... Nb3
{[%clk 0:01:39.3]} 20. Rb1 {[%clk 0:00:50.4]} 20... Nxc1 {[%clk 0:01:39.1]} 21.
Qxc1 {[%clk 0:00:41.3]} 21... Bd6 {[%clk 0:01:33]} 22. Qe3 {[%clk 0:00:36.2]}
22... Qc7 {[%clk 0:01:19.7]} 23. Bf1 {[%clk 0:00:33.9]} 23... Ng6 {[%clk
0:01:04]} 24. g3 {[%clk 0:00:32.7]} 24... g4 {[%clk 0:01:01.9]} 25. Ne5 {[%clk
0:00:25.4]} 25... Nxe5 {[%clk 0:00:59.9]} 26. dxe5 {[%clk 0:00:26.3]} 26... Bc5
{[%clk 0:00:59.8]} 27. Qd2 {[%clk 0:00:21.1]} 27... h5 {[%clk 0:00:54.7]} 28.
Bg2 {[%clk 0:00:16.2]} 28... h4 {[%clk 0:00:54]} 29. gxh4 {[%clk 0:00:15.9]}
29... Rxh4 {[%clk 0:00:52.7]} 30. Qg5 {[%clk 0:00:15.6]} 30... Rh8 {[%clk
0:00:47.6]} 31. Qxg4 {[%clk 0:00:15.7]} 31... Qd8 {[%clk 0:00:43.8]} 32. Rbd1
{[%clk 0:00:13.4]} 32... Rg8 {[%clk 0:00:38.7]} 33. Qh3 {[%clk 0:00:13.4]} 33...
Qe8 {[%clk 0:00:32.5]} 34. Rd2 {[%clk 0:00:13.2]} 34... Qg6 {[%clk 0:00:26.5]}
35. Kf1 {[%clk 0:00:13.3]} 35... Be8 {[%clk 0:00:20]} 36. Rxd5 {[%clk
0:00:11.9]} 36... Be7 {[%clk 0:00:12.3]} 37. Rd2 {[%clk 0:00:11.5]} 37... Qf7
{[%clk 0:00:09.2]} 38. Qf3 {[%clk 0:00:09.8]} 38... Bc6 {[%clk 0:00:08.1]} 39.
Qxf7 {[%clk 0:00:09.2]} 39... Bxg2+ {[%clk 0:00:06.9]} 40. Ke2 {[%clk
0:00:09.4]} 1-0